bitfinex/quotes_SOLUSD_20220306
["timestamp","ask_amount","ask_price","bid_price","bid_amount"]
[1646609953643,5.906,84.707,84.63,25.2595]
[1646609953844,3.07674742,84.715,84.631,5.905]
[1646609954045,3.07674742,84.713,84.631,5.905]
[1646609954245,8.98174742,84.712,84.63,17.7195]
[1646609954545,117.0,84.71,84.632,60.28522014]
[1646609954749,117.0,84.708,84.606,5.905]
[1646609954945,117.0,84.706,84.59,13.94]
[1646609955148,3.07674742,84.7,84.59,13.94]
[1646609955346,3.07674742,84.698,84.591,5.907]
[1646609955546,0.60865471,84.695,84.59,13.94]
[1646609955747,0.60865471,84.693,84.591,47.8512354]
[1646609955946,129.33809686,84.694,84.591,47.8512354]
[1646609955947,0.60865471,84.69,84.591,47.8512354]
[1646609956246,0.60865471,84.687,84.6,17.7273]
[1646609956447,117.0,84.685,84.6,17.7273]
[1646609956648,0.37193382,84.683,84.6,17.7273]
[1646609956847,52.9973858,84.681,84.6,17.7273]
[1646609957047,0.40269307,84.679,84.6,17.7273]
[1646609957249,0.40269307,84.677,84.6,17.7273]
[1646609957446,5.907,84.676,84.6,17.7273]
[1646609957647,52.9973858,84.681,84.6,17.7273]
[1646609957847,52.9973858,84.681,84.601,5.907]
[1646609958769,52.9973858,84.681,84.61,17.726]
[1646609958970,52.9973858,84.681,84.611,50.46194625]
[1646609959372,5.906,84.68,84.611,50.46194625]
[1646609959974,5.906,84.68,84.62,17.7233]
[1646609960174,52.9973858,84.681,84.62,17.7233]
[1646609963179,22.8036,84.684,84.62,17.7233]
[1646609964583,22.8036,84.684,84.611,50.46194625]
[1646609964783,5.906,84.683,84.611,50.46194625]
[1646609965978,6.4322189,84.682,84.611,50.46194625]
[1646609966178,5.906,84.681,84.611,50.46194625]
[1646609966380,6.4322189,84.68,84.612,5.906]
[1646609966581,6.4322189,84.683,84.612,5.906]
[1646609966881,22.8036,84.684,84.612,5.906]
[1646609967081,6.43170624,84.683,84.612,5.906]
[1646609967282,6.43170624,84.683,84.62,17.7245]
[1646609967484,22.8036,84.684,84.621,5.906]
[1646609967683,22.8036,84.684,84.615,117.0]
[1646609968081,22.8036,84.684,84.617,117.0]
[1646609968282,22.8036,84.684,84.611,50.46194625]
[1646609968283,3.07674742,84.7,84.623,117.0]
[1646609968482,6.43085498,84.699,84.627,117.0]
[1646609968683,60.33287121,84.698,84.629,117.0]
[1646609968883,3.07674742,84.703,84.65,17.718]
[1646609969085,3.07674742,84.689,84.65,17.718]
[1646609969988,3.07674742,84.689,84.651,52.06147933]
[1646609970385,3.07674742,84.689,84.652,117.0]
[1646609970583,24.5551,84.71,84.652,117.0]
[1646609970584,3.07674742,84.703,84.652,117.0]
[1646609970786,3.07674742,84.712,84.658,117.0]
[1646609970995,3.07674742,84.723,84.662,187.12]
[1646609971285,6.42820757,84.736,84.681,127.0]
[1646609971487,3.10266076,84.73,84.681,134.2]
[1646609971685,4.59973372,84.765,84.681,134.2]
[1646609971884,4.59973372,84.765,84.683,117.0]
[1646609972084,4.59973372,84.765,84.686,70.12]
[1646609972284,4.59973372,84.765,84.685,117.0]
[1646609972285,4.59973372,84.765,84.693,117.0]
[1646609972588,6.42710567,84.765,84.701,117.0]
[1646609972884,6.42710567,84.768,84.701,117.0]
[1646609973088,6.42710567,84.768,84.693,5.9]
[1646609973285,63.93877426,84.767,84.684,58.15854088]
[1646609973485,6.42710567,84.766,84.684,58.15854088]
[1646609973686,5.901,84.765,84.69,17.7091]
[1646609973987,6.42710567,84.764,84.69,17.7091]
[1646609974187,5.901,84.763,84.69,17.7091]
[1646609974386,6.42710567,84.762,84.69,17.7091]
[1646609974586,5.901,84.761,84.69,17.7091]
[1646609974788,6.42710567,84.76,84.69,17.7091]
[1646609974985,5.901,84.759,84.69,17.7091]
[1646609975386,6.42710567,84.758,84.69,17.7091]
[1646609975586,5.901,84.757,84.69,17.7091]
[1646609975787,6.42710567,84.756,84.69,17.7091]
[1646609976288,6.42710567,84.765,84.69,17.7091]
[1646609976490,6.42710567,84.765,84.691,5.901]
[1646609976788,6.42710567,84.766,84.691,5.901]
[1646609979089,117.0,84.765,84.691,5.901]
[1646609979290,0.3978223,84.763,84.7,17.7069]
[1646609979491,6.42710567,84.762,84.701,62.86434929]
[1646609979691,6.42710567,84.762,84.701,40.36850762]
[1646609979992,6.42710567,84.761,84.701,40.36850762]
[1646609980195,6.42710567,84.765,84.701,40.36850762]
[1646609980392,5.9,84.764,84.701,40.36850762]
[1646609980795,6.42710567,84.763,84.701,40.36850762]
[1646609980993,5.9,84.762,84.701,40.36850762]
[1646609981392,6.42710567,84.761,84.701,40.36850762]
[1646609981792,6.42710567,84.765,84.701,40.36850762]
[1646609981994,5.9,84.764,84.701,40.36850762]
[1646609982292,6.42710567,84.763,84.701,40.36850762]
[1646609982797,122.9,84.762,84.691,5.901]
[1646609983094,130.94,84.76,84.691,5.901]
[1646609983294,12.32810567,84.759,84.691,5.901]
[1646609983493,6.42710567,84.758,84.691,5.901]
[1646609983692,0.81385499,84.757,84.692,57.6321514]
[1646609983893,6.42710567,84.756,84.692,57.6321514]
[1646609984195,51.01077746,84.754,84.692,57.6321514]
[1646609984393,0.81385499,84.752,84.692,57.6321514]
[1646609984592,12.32810567,84.751,84.692,57.6321514]
[1646609984792,4.59973372,84.77,84.693,10.0]
[1646609984996,22.05066268,84.863,84.693,10.0]
[1646609984997,2.39657857,84.782,84.693,10.0]
[1646609985194,4.59973372,84.819,84.695,5.68741685]
[1646609985398,48.5499,84.808,84.701,117.0]
[1646609985692,48.5499,84.808,84.694,55.31169202]
[1646609985693,48.5499,84.808,84.711,117.0]
[1646609985896,45.65222196,84.807,84.73,17.6936]
[1646609986097,45.65222196,84.807,84.731,51.58930688]
[1646609988096,45.65222196,84.807,84.74,17.6993]
[1646609988492,5.898,84.806,84.74,17.6993]
[1646609988895,117.0,84.805,84.74,17.6993]
[1646609989095,122.898,84.804,84.74,17.6993]
[1646609989295,122.898,84.804,84.731,51.58930688]
[1646609989494,117.0,84.804,84.731,51.58930688]
[1646609989694,117.37658873,84.802,84.731,51.58930688]
[1646609989896,117.40168364,84.8,84.721,5.898]
[1646609990101,117.0,84.798,84.721,5.898]
[1646609990296,117.0,84.796,84.721,5.898]
[1646609990499,0.50081922,84.795,84.721,5.898]
[1646609990699,117.0,84.793,84.721,5.898]
[1646609990895,62.0878544,84.792,84.722,50.67869712]
[1646609991697,117.0,84.791,84.722,50.67869712]
[1646609991897,117.55392149,84.789,84.722,50.67869712]
[1646609992097,0.55392149,84.789,84.722,50.67869712]
[1646609992298,5.899,84.791,84.722,50.67869712]
[1646609997202,117.77451414,84.79,84.721,5.898]
[1646609997400,0.77451414,84.787,84.721,5.898]
[1646609997600,0.77451414,84.784,84.721,5.898]
[1646609997802,0.77451414,84.778,84.721,5.898]
[1646609997999,5.899,84.777,84.721,5.898]
[1646609998201,0.77451414,84.774,84.721,5.898]
[1646609998507,0.77451414,84.774,84.69,17.7096]
[1646609998699,117.0,84.772,84.69,17.7096]
[1646609998899,0.77451414,84.771,84.69,17.7096]
[1646609999099,5.901,84.77,84.69,17.7096]
[1646609999299,5.901,84.772,84.691,61.59742541]
[1646609999501,164.8971,84.773,84.7,17.7078]
[1646610001204,117.0,84.771,84.691,61.59742541]
[1646610001399,117.0,84.769,84.691,61.59742541]
[1646610001601,117.0,84.767,84.691,61.59742541]
[1646610001800,117.0,84.765,84.691,61.59742541]
[1646610002002,45.64713894,84.762,84.691,61.59742541]
[1646610002300,5.901,84.761,84.691,61.59742541]
[1646610002700,45.64713894,84.762,84.691,61.59742541]
[1646610003303,45.64713894,84.762,84.7,17.7082]
[1646610005804,117.0,84.761,84.7,17.7082]
[1646610006006,117.0,84.761,84.68,59.0258]
[1646610006209,0.51765248,84.758,84.662,26.72626834]
[1646610006406,0.51765248,84.755,84.662,26.72626834]
[1646610007008,0.51765248,84.755,84.68,17.7123]
[1646610007209,0.51765248,84.752,84.662,26.72626834]
[1646610007412,0.51765248,84.752,84.65,40.66626834]
[1646610007609,24.9372,84.76,84.65,40.66626834]
[1646610007610,0.5288688,84.749,84.65,40.66626834]
[1646610007811,117.0,84.747,84.638,49.2906]
[1646610008010,117.0,84.743,84.639,51.20155704]
[1646610008211,117.56651185,84.741,84.64,5.903]
[1646610008411,0.56651185,84.738,84.64,5.903]
[1646610008614,9.5,84.743,84.65,17.7178]
[1646610008615,5.902,84.737,84.65,17.7178]
[1646610008819,5.902,84.741,84.651,5.902]
[1646610009014,5.902,84.741,84.652,53.8154921]
[1646610009214,24.97,84.742,84.653,5.902]
[1646610009816,24.97,84.742,84.67,17.711]
[1646610010016,117.0,84.741,84.67,17.711]
[1646610011018,24.97,84.742,84.67,17.711]
[1646610011420,24.97,84.742,84.67,16.711]
[1646610013221,24.97,84.742,84.671,5.902]
[1646610013419,24.97,84.742,84.69,17.7077]
[1646610013619,24.97,84.742,84.691,57.46735122]
[1646610014023,24.97,84.742,84.69,17.7077]
[1646610014520,24.97,84.742,84.67,17.7138]
[1646610014721,122.902,84.741,84.657,24.7586]
[1646610014933,0.37429459,84.74,84.641,5.902]
[1646610015135,5.902,84.739,84.642,48.87240741]
[1646610015332,117.0,84.739,84.643,5.902]
[1646610015532,117.0,84.737,84.643,5.902]
[1646610015737,117.0,84.735,84.643,5.902]
[1646610015934,117.0,84.733,84.644,26.72626834]
[1646610016133,48.24348426,84.731,84.65,17.7176]
[1646610016333,5.902,84.73,84.65,17.7176]
[1646610017636,48.24348426,84.731,84.651,5.902]
[1646610018939,117.0,84.73,84.651,5.902]
[1646610019143,117.0,84.728,84.651,5.902]
[1646610019338,117.0,84.726,84.651,5.902]
[1646610019740,0.48658363,84.725,84.63,17.7226]
[1646610019941,117.0,84.724,84.63,17.7226]
[1646610020141,0.64197495,84.723,84.63,17.7226]
[1646610020541,0.64197495,84.723,84.631,47.05947307]
[1646610020741,0.64197495,84.723,84.64,17.7208]
[1646610021041,117.0,84.724,84.64,17.7208]
[1646610021644,117.0,84.722,84.64,17.7208]
[1646610021844,0.38068691,84.719,84.64,17.7208]
[1646610022043,117.0,84.715,84.64,17.7208]
[1646610022242,0.46409967,84.712,84.64,17.7208]
[1646610022642,117.0,84.713,84.64,17.7208]
[1646610022643,0.46409967,84.709,84.64,17.7208]
[1646610022845,0.46409967,84.706,84.64,17.7208]
[1646610023043,166.53071405,84.703,84.64,17.7208]
[1646610023243,166.06661438,84.703,84.64,17.7208]
[1646610023543,49.06661438,84.703,84.64,17.7208]
[1646610024544,166.06661438,84.703,84.64,17.7208]
[1646610024745,166.06661438,84.703,84.62,17.7252]
[1646610024946,117.0,84.701,84.62,17.7252]
[1646610025246,117.0,84.699,84.62,17.7252]
[1646610025445,5.906,84.698,84.62,17.7252]
[1646610025647,5.906,84.701,84.622,47.27543675]
[1646610025848,48.1406,84.702,84.64,17.7175]
[1646610026047,5.905,84.701,84.641,62.18858084]
[1646610027047,5.905,84.701,84.65,17.7188]
[1646610027448,49.06661438,84.703,84.65,17.7188]
[1646610028648,49.06661438,84.703,84.641,62.18858084]
[1646610028849,49.06661438,84.703,84.628,26.72626834]
[1646610029051,24.4205,84.702,84.62,59.0675]
[1646610029850,24.4205,84.702,84.621,49.92769538]
[1646610030050,0.48004873,84.7,84.61,14.28709929]
[1646610030252,0.48004873,84.7,84.597,14.28709929]
[1646610030452,0.48004873,84.697,84.596,26.72626834]
[1646610030650,0.48004873,84.694,84.596,26.72626834]
[1646610030850,23.389,84.701,84.596,26.72626834]
[1646610030851,0.48004873,84.691,84.596,26.72626834]
[1646610031051,48.91682991,84.688,84.596,26.72626834]
[1646610031252,122.906,84.687,84.596,26.72626834]
[1646610031454,0.38846022,84.686,84.596,26.72626834]
[1646610031651,117.0,84.684,84.596,26.72626834]
[1646610032050,117.0,84.682,84.596,26.72626834]
[1646610032350,29.9781,84.681,84.61,17.7273]
[1646610033051,117.0,84.68,84.596,26.72626834]
[1646610033251,117.0,84.678,84.591,23.9926]
[1646610033451,117.0,84.676,84.591,23.9926]
[1646610033653,117.0,84.674,84.591,23.9926]
[1646610033850,117.0,84.672,84.591,23.9926]
[1646610034050,117.0,84.67,84.591,23.9926]
[1646610034250,117.0,84.668,84.591,23.9926]
[1646610034453,117.0,84.666,84.591,23.9926]
[1646610034652,117.0,84.664,84.59,17.7309]
[1646610034853,0.42445411,84.663,84.58,26.72626834]
[1646610035052,0.54418952,84.66,84.558,49.023]
[1646610035352,117.0,84.656,84.558,49.023]
[1646610035550,0.5566681,84.653,84.558,49.023]
[1646610035751,0.5566681,84.65,84.558,49.023]
[1646610035950,0.5566681,84.647,84.56,17.7377]
[1646610036150,5.909,84.646,84.56,17.7377]
[1646610036352,5.909,84.65,84.561,24.586815]
[1646610036551,22.6441,84.655,84.562,52.43023921]
[1646610036950,22.6441,84.655,84.563,24.586815]
[1646610038056,5.909,84.654,84.563,24.586815]
[1646610038256,5.909,84.654,84.58,17.7338]
[1646610038859,117.0,84.653,84.58,17.7338]
[1646610039058,122.909,84.652,84.58,17.7338]
[1646610040257,5.909,84.652,84.58,17.7338]
[1646610040459,5.909,84.654,84.58,17.7338]
[1646610040859,117.0,84.653,84.58,17.7338]
[1646610041058,122.909,84.652,84.58,17.7338]
[1646610041363,117.0,84.649,84.56,17.7369]
[1646610041560,0.41150824,84.646,84.56,17.7369]
[1646610041760,0.41150824,84.643,84.56,17.7369]
[1646610041958,122.91,84.642,84.56,80.6989571]
[1646610042158,47.0668,84.641,84.56,80.6989571]
[1646610042366,5.91,84.64,84.56,80.6989571]
[1646610042559,47.0668,84.641,84.56,105.2857721]
[1646610043959,47.0668,84.641,84.56,80.6989571]
[1646610046264,5.91,84.64,84.56,80.6989571]
[1646610046465,12.55,84.64,84.56,80.6989571]
[1646610047965,6.64,84.64,84.56,17.7369]
[1646610048171,0.72254797,84.638,84.533,24.586815]
[1646610048370,117.0,84.629,84.533,24.586815]
[1646610048571,0.72254797,84.626,84.517,47.3095]
[1646610048973,0.72254797,84.624,84.518,56.76093627]
[1646610049174,0.72254797,84.618,84.518,56.76093627]
[1646610049373,0.72254797,84.615,84.518,56.76093627]
[1646610049571,117.0,84.611,84.518,56.76093627]
[1646610049772,122.912,84.611,84.518,81.34775127]
[1646610049976,23.5837,84.61,84.518,81.34775127]
[1646610050179,23.5837,84.61,84.531,57.0663371]
[1646610051577,23.5837,84.61,84.53,17.7437]
[1646610051777,117.0,84.609,84.53,17.7437]
[1646610051978,117.44513118,84.609,84.53,17.7437]
[1646610052179,117.0,84.607,84.53,17.7437]
[1646610052381,117.0,84.605,84.53,17.7437]
[1646610052781,117.0,84.603,84.53,17.7437]
[1646610052987,5.912,84.602,84.53,75.54502811]
[1646610053181,5.912,84.605,84.53,75.54502811]
[1646610053583,5.912,84.605,84.53,17.7437]
[1646610054285,117.0,84.604,84.53,17.7437]
[1646610054485,117.0,84.602,84.53,17.7437]
[1646610054685,5.912,84.601,84.53,17.7437]
[1646610055687,117.0,84.603,84.53,17.7437]
[1646610055888,117.0,84.601,84.53,17.7437]
[1646610056104,53.53915789,84.598,84.53,17.7437]
[1646610056507,53.53915789,84.598,84.55,17.7337]
[1646610058708,53.53915789,84.598,84.52,13.94]
[1646610058709,53.53915789,84.598,84.53,17.7431]
[1646610060615,117.0,84.597,84.53,17.7431]
[1646610060811,117.0,84.595,84.53,17.7431]
[1646610061011,117.0,84.593,84.53,17.7431]
[1646610061211,122.912,84.592,84.53,17.7431]
[1646610062111,5.912,84.592,84.53,17.7431]
[1646610062313,53.53915789,84.598,84.53,17.7431]
[1646610063717,53.53915789,84.598,84.535,117.0]
[1646610063918,5.912,84.628,84.55,17.7319]
[1646610064122,23.8104,84.631,84.55,17.7319]
[1646610064920,69.56336374,84.63,84.551,49.60479305]
[1646610065120,69.56336374,84.63,84.56,17.7369]
[1646610065320,63.65336374,84.63,84.56,17.7369]
[1646610066220,63.65336374,84.63,84.56,31.6769]
[1646610066420,63.65336374,84.63,84.56,56.263715]
[1646610066821,63.65336374,84.63,84.56,31.6769]
[1646610067021,63.65336374,84.63,84.56,17.7369]
[1646610067220,5.91,84.629,84.56,17.7369]
[1646610067423,6.12,84.629,84.56,17.7369]
[1646610067926,117.0,84.628,84.536,24.0654]
[1646610068124,0.38839771,84.625,84.536,24.0654]
[1646610068325,6.12,84.629,84.536,24.0654]
[1646610068326,64.64638601,84.613,84.536,24.0654]
[1646610068522,0.41854412,84.611,84.536,24.0654]
[1646610068724,117.0,84.609,84.536,24.0654]
[1646610068925,117.0,84.607,84.536,24.0654]
[1646610069123,5.912,84.606,84.536,24.0654]
[1646610069323,5.912,84.612,84.536,24.0654]
[1646610069622,64.64638601,84.613,84.537,48.45698421]
[1646610069822,23.6397,84.612,84.537,48.45698421]
[1646610070022,23.6397,84.612,84.54,17.7419]
[1646610070223,143.03637048,84.612,84.54,17.7419]
[1646610070424,117.0,84.61,84.54,17.7419]
[1646610071322,117.0,84.61,84.52,17.7452]
[1646610071522,117.0,84.608,84.52,17.7452]
[1646610071824,1.54743263,84.603,84.52,17.7452]
[1646610072024,117.0,84.601,84.52,17.7452]
[1646610072222,117.0,84.599,84.52,17.7452]
[1646610072423,117.0,84.595,84.52,17.7452]
[1646610072724,117.0,84.593,84.52,17.7452]
[1646610072926,5.913,84.595,84.521,24.586815]
[1646610073125,52.4299919,84.596,84.53,17.7437]
[1646610076528,5.912,84.595,84.53,17.7437]
[1646610077430,52.4299919,84.596,84.53,17.7437]
[1646610078334,0.40650333,84.594,84.508,24.586815]
[1646610078633,52.4299919,84.596,84.508,24.586815]
[1646610078634,0.40650333,84.591,84.508,24.586815]
[1646610078830,5.913,84.59,84.508,24.586815]
[1646610079130,5.913,84.591,84.508,24.586815]
[1646610079330,117.0,84.59,84.518,63.27991297]
[1646610079633,117.0,84.588,84.52,17.746]
[1646610079831,117.0,84.588,84.521,5.913]
[1646610080034,5.913,84.595,84.521,5.913]
[1646610080233,5.913,84.595,84.52,17.746]
[1646610080634,117.0,84.594,84.52,17.746]
[1646610080838,5.913,84.593,84.521,50.80698263]
[1646610081033,5.913,84.595,84.521,50.80698263]
[1646610082658,117.0,84.594,84.521,50.80698263]
[1646610082860,117.0,84.592,84.521,50.80698263]
[1646610083062,5.913,84.591,84.521,50.80698263]
[1646610083260,5.913,84.591,84.504,5.913]
[1646610083468,1.54743263,84.587,84.504,5.913]
[1646610083662,0.56962893,84.586,84.476,5.913]
[1646610083864,1.54743263,84.579,84.484,24.1913]
[1646610084063,0.56962893,84.576,84.484,24.1913]
[1646610084262,0.56962893,84.576,84.495,59.21732358]
[1646610084263,122.914,84.575,84.495,59.21732358]
[1646610084464,0.56962893,84.574,84.5,17.7499]
[1646610084663,122.914,84.575,84.501,5.914]
[1646610084664,117.0,84.575,84.501,5.914]
[1646610085069,84.35047731,84.576,84.501,5.914]
[1646610085265,84.35047731,84.576,84.5,24.586815]
[1646610085466,60.94997731,84.576,84.501,5.914]
[1646610085767,60.94997731,84.576,84.502,24.586815]
[1646610085968,60.94997731,84.576,84.51,17.7482]
[1646610086167,60.94997731,84.576,84.511,64.4644571]
[1646610087168,23.4005,84.598,84.52,17.7451]
[1646610087368,1.54743263,84.607,84.521,5.913]
[1646610087568,1.54743263,84.615,84.521,117.0]
[1646610087767,1.54743263,84.618,84.525,122.45600871]
[1646610087968,1.54743263,84.626,84.54,13.94]
[1646610088168,55.63036015,84.633,84.541,57.58770025]
[1646610088368,55.63036015,84.633,84.543,117.0]
[1646610088575,55.63036015,84.633,84.545,121.82121446]
[1646610088771,55.63036015,84.633,84.55,13.94]
[1646610088969,55.63036015,84.633,84.551,5.91]
[1646610089169,55.63036015,84.633,84.551,19.40448155]
[1646610089570,55.63036015,84.633,84.552,13.49448155]
[1646610090171,55.63036015,84.633,84.561,48.19211641]
[1646610092174,55.63036015,84.633,84.58,17.7329]
[1646610092977,117.0,84.632,84.552,22.7689]
[1646610093175,139.6994,84.632,84.552,22.7689]
[1646610093376,122.91,84.631,84.552,22.7689]
[1646610093778,22.6058,84.63,84.552,22.7689]
[1646610093975,22.6058,84.63,84.56,17.7368]
[1646610094175,55.63036015,84.633,84.56,17.7368]
[1646610094777,55.63036015,84.633,84.56,42.323615]
[1646610094976,55.63036015,84.633,84.571,46.40207776]
[1646610095175,55.63036015,84.633,84.58,17.7285]
[1646610095577,47.362,84.656,84.58,17.7285]
[1646610096475,49.99709531,84.655,84.58,17.7285]
[1646610096777,55.90509531,84.655,84.58,17.7285]
[1646610097675,49.99709531,84.655,84.58,17.7285]
[1646610098479,49.99709531,84.655,84.582,70.12]
[1646610098681,1.54743263,84.685,84.61,17.7188]
[1646610098981,5.906,84.684,84.61,17.7188]
[1646610099177,5.906,84.688,84.61,17.7188]
[1646610099377,23.8343,84.692,84.61,17.7188]
[1646610099578,5.906,84.706,84.611,78.72905131]
[1646610099579,52.72249127,84.7,84.611,78.72905131]
[1646610099780,5.906,84.699,84.63,17.7213]
[1646610099977,5.906,84.699,84.631,63.9182303]
[1646610100381,5.905,84.711,84.631,73.5982303]
[1646610100579,1.54743263,84.724,84.632,117.0]
[1646610100781,7.45243263,84.736,84.635,4.7913193]
[1646610100979,7.45243263,84.736,84.65,13.94]
[1646610100980,1.54743263,84.736,84.65,13.94]
[1646610101178,5.904,84.748,84.65,13.94]
[1646610101179,1.54743263,84.741,84.65,23.34]
[1646610101383,46.89215111,84.738,84.671,62.20441886]
[1646610101587,46.89215111,84.738,84.67,17.7119]
[1646610102180,46.39215111,84.738,84.67,17.7119]
[1646610102379,5.902,84.737,84.67,17.7119]
[1646610102781,117.0,84.736,84.67,17.7119]
[1646610103880,117.0,84.737,84.67,17.7119]
[1646610104084,46.39215111,84.738,84.67,17.7119]
[1646610107491,117.0,84.737,84.67,17.7119]
[1646610107692,0.49990911,84.736,84.63,13.94]
[1646610107991,0.49990911,84.736,84.594,74.51228003]
[1646610107992,117.0,84.733,84.553,5.25780929]
[1646610108192,0.86100325,84.719,84.59,13.94]
[1646610108393,117.0,84.715,84.592,64.73273719]
[1646610108613,0.86100325,84.712,84.61,17.7264]
[1646610108815,0.86100325,84.709,84.611,47.87134808]
[1646610109015,5.905,84.708,84.611,47.87134808]
[1646610109215,0.86100325,84.715,84.611,47.87134808]
[1646610109418,5.905,84.715,84.611,47.87134808]
[1646610109614,52.5215166,84.716,84.611,47.87134808]
[1646610110015,52.5215166,84.716,84.613,70.12]
[1646610110216,52.5215166,84.716,84.641,52.33068361]
[1646610110419,52.5215166,84.716,84.641,59.52068361]
[1646610111814,52.5215166,84.716,84.641,52.33068361]
[1646610112218,52.5215166,84.716,84.66,17.7119]
[1646610112418,52.5215166,84.716,84.661,62.39130635]
[1646610114318,52.5215166,84.716,84.67,17.7139]
[1646610117020,117.0,84.715,84.631,24.9452]
[1646610117226,117.0,84.715,76.881,4.0]
[1646610117227,0.46996004,84.714,84.629,50.47630714]
[1646610117422,117.50023494,84.712,84.629,50.47630714]
[1646610117623,1.54743263,84.705,84.629,50.47630714]
[1646610117921,0.59407053,84.694,84.629,50.47630714]
[1646610118122,0.59407053,84.696,84.629,50.47630714]
[1646610118321,0.59407053,84.693,84.629,50.47630714]
[1646610118520,1.54743263,84.699,84.629,50.47630714]
[1646610119122,1.54743263,84.7,84.629,50.47630714]
[1646610119323,1.54743263,84.696,84.629,50.47630714]
[1646610119824,0.40294372,84.695,84.629,50.47630714]
[1646610120224,0.40294372,84.693,84.629,50.47630714]
[1646610120423,0.40294372,84.691,84.629,50.47630714]
[1646610120623,47.09035438,84.689,84.629,50.47630714]
[1646610121024,5.906,84.688,84.629,50.47630714]
[1646610121425,47.09035438,84.689,84.629,50.47630714]
[1646610122027,117.37111212,84.688,84.62,17.7252]
[1646610122226,117.37111212,84.688,84.6,83.2827]
[1646610122429,1.54743263,84.684,84.6,83.2827]
[1646610122626,2.03268399,84.683,84.6,83.2827]
[1646610122826,117.0,84.681,84.6,83.2827]
[1646610123028,5.907,84.682,84.601,49.04176582]
[1646610123029,0.48525136,84.68,84.601,49.04176582]
[1646610123227,5.907,84.679,84.601,49.04176582]
[1646610123426,47.5915,84.687,84.601,49.04176582]
[1646610123826,47.5915,84.687,84.61,17.7278]
[1646610124329,47.5915,84.687,84.61,31.6678]
[1646610124626,1.54743263,84.712,84.62,59.0535]
[1646610124828,22.5098,84.72,84.621,23.6581]
[1646610125029,22.5098,84.72,84.621,74.07339423]
[1646610125030,1.54743263,84.715,84.621,74.07339423]
[1646610125227,1.54743263,84.715,84.622,24.586815]
[1646610125427,1.54743263,84.716,84.623,187.12]
[1646610125628,59.78979354,84.715,84.625,117.0]
[1646610126027,59.78979354,84.715,84.627,117.0]
[1646610126226,59.78979354,84.715,84.63,31.6561]
[1646610126631,59.78979354,84.715,84.64,59.0441]
[1646610126829,59.78979354,84.715,84.641,61.93980852]
[1646610128229,59.78979354,84.715,84.65,17.7133]
[1646610128430,61.33722617,84.715,84.65,17.7133]
[1646610128929,1.54743263,84.714,84.65,17.7133]
[1646610129529,59.78979354,84.715,84.65,17.7133]
[1646610129730,1.54743263,84.726,84.651,117.0]
[1646610129930,1.54743263,84.73,84.67,17.7062]
[1646610130134,1.54743263,84.73,84.68,13.94]
[1646610130329,1.54743263,84.75,84.68,13.94]
[1646610130531,1.54743263,84.751,84.68,13.94]
[1646610130731,61.8156418,84.75,84.681,51.28701763]
[1646610131132,61.8156418,84.75,84.701,51.95079749]
[1646610132132,61.8156418,84.75,84.71,17.7034]
[1646610132431,61.8156418,84.75,84.671,24.5372]
[1646610133231,61.8156418,84.75,84.672,62.2729396]
[1646610133432,61.8156418,84.75,84.69,17.7104]
[1646610133634,61.8156418,84.75,84.691,56.73175356]
[1646610135140,61.8156418,84.75,84.7,17.7039]
[1646610139738,61.8156418,84.75,84.691,56.73175356]
[1646610141239,61.8156418,84.75,84.7,17.7081]
[1646610142040,1.54743263,84.762,84.7,17.7081]
[1646610142241,1.54743263,84.769,84.7,17.7081]
[1646610142442,1.54743263,84.769,84.701,187.12]
[1646610142645,1.54743263,84.775,84.701,187.12]
[1646610142945,1.54743263,84.794,84.722,70.12]